fUSD/lending_fUSD_20240122
["ID","MTS","AMOUNT","RATE_DAILY","PERIOD"]
[312503008,1705935126316,-716.16,0.00055068,120]
[312503009,1705935126342,-500.0,0.00055068,120]
[312503010,1705935126370,-743.65,0.00055068,120]
[312503011,1705935126398,-500.0,0.00055068,120]
[312503012,1705935126424,-500.0,0.00055068,120]
[312503013,1705935126620,-501.89,0.00055068,120]
[312503014,1705935126646,-765.86,0.00055068,120]
[312503015,1705935126670,-1960.91,0.00055068,120]
[312503016,1705935126696,-500.0,0.00055068,120]
[312503017,1705935126722,-500.0,0.00055068,120]
[312503018,1705935126747,-500.0,0.00055068,120]
[312503019,1705935126771,-864.85,0.00055068,120]
[312503020,1705935126799,-500.0,0.00055068,120]
[312503021,1705935126825,-500.0,0.00055068,120]
[312503022,1705935126852,-895.93,0.00055068,120]
[312503023,1705935126878,-375.02,0.00055068,120]
[312503024,1705935126906,-652.75,0.00055068,120]
[312503025,1705935126934,-500.0,0.00055068,120]
[312503026,1705935126960,-1017.75,0.00055068,120]
[312503027,1705935126987,-718.71,0.00055068,120]
[312503028,1705935127012,-500.0,0.00055068,120]
[312503029,1705935127039,-500.0,0.00055068,120]
[312503030,1705935127066,-500.0,0.00055068,120]
[312503031,1705935127091,-950.95,0.00055068,120]
[312503032,1705935127116,-500.0,0.00055068,120]
[312503033,1705935127140,-1166.26,0.00055068,120]
[312503034,1705935127165,-500.0,0.00055068,120]
[312503035,1705935127192,-1163.88,0.00055068,120]
[312503036,1705935127218,-706.58,0.00055068,120]
[312503037,1705935127243,-500.0,0.00055068,120]
[312503038,1705935127269,-500.0,0.00055068,120]
[312503039,1705935127295,-500.0,0.00055068,120]
[312503040,1705935127322,-500.0,0.00055068,120]
[312503041,1705935127347,-500.0,0.00055068,120]
[312503042,1705935127372,-500.0,0.00055068,120]
[312503043,1705935127400,-775.78,0.00055068,120]
[312503044,1705935127425,-1841.93,0.00055068,120]
[312503045,1705935127452,-500.0,0.00055068,120]
[312503046,1705935127476,-500.0,0.00055068,120]
[312503047,1705935127505,-604.25,0.00055068,120]
[312503048,1705935127532,-500.0,0.00055068,120]
[312503049,1705935127564,-500.0,0.00055068,120]
[312503050,1705935127591,-500.0,0.00055068,120]
[312503051,1705935127617,-744.8,0.00055068,120]
[312503052,1705935127644,-500.0,0.00055068,120]
[312503053,1705935127671,-803.23,0.00055068,120]
[312503054,1705935127697,-500.0,0.00055068,120]
[312503055,1705935127724,-1391.49,0.00055068,120]
[312503056,1705935127750,-513.36722359,0.00055068,120]
[312503057,1705935127776,-500.0,0.00055068,120]
[312503058,1705935127802,-743.79,0.00055068,120]
[312503059,1705935127828,-500.0,0.00055068,120]
[312503060,1705935127853,-758.95,0.00055068,120]
[312503061,1705935127880,-500.0,0.00055068,120]
[312503062,1705935127910,-805.81,0.00055068,120]
[312503063,1705935127937,-500.0,0.00055068,120]
[312503064,1705935127962,-500.0,0.00055068,120]
[312503065,1705935127989,-500.0,0.00055068,120]
[312503066,1705935128015,-575.63,0.00055068,120]
[312503067,1705935128043,-500.0,0.00055068,120]
[312503068,1705935128070,-500.0,0.00055068,120]
[312503069,1705935128097,-869.66,0.00055068,120]
[312503070,1705935128126,-500.0,0.00055068,120]
[312503071,1705935128153,-500.0,0.00055068,120]
[312503072,1705935128181,-500.0,0.00055068,120]
[312503073,1705935128209,-500.0,0.00055068,120]
[312503074,1705935128238,-500.0,0.00055068,120]
[312503075,1705935128264,-907.16,0.00055068,120]
[312503076,1705935128291,-1000.0,0.00055068,120]
[312503077,1705935128324,-619.23,0.00055068,120]
[312503078,1705935128351,-789.34,0.00055068,120]
[312503079,1705935128379,-500.0,0.00055068,120]
[312503080,1705935128407,-1452.65,0.00055068,120]
[312503081,1705935128435,-696.15,0.00055068,120]
[312503082,1705935128464,-500.0,0.00055068,120]
[312503083,1705935128492,-593.79,0.00055068,120]
[312503084,1705935128521,-500.0,0.00055068,120]
[312503085,1705935128548,-500.0,0.00055068,120]
[312503086,1705935128576,-1334.13,0.00055068,120]
[312503087,1705935128603,-500.0,0.00055068,120]
[312503088,1705935128629,-836.62,0.00055068,120]
[312503089,1705935128658,-837.72,0.00055068,120]
[312503090,1705935128686,-623.18,0.00055068,120]
[312503091,1705935128713,-1323.21,0.00055068,120]
[312503092,1705935128741,-500.0,0.00055068,120]
[312503093,1705935128767,-557.03,0.00055068,120]
[312503094,1705935128798,-609.57,0.00055068,120]
[312503095,1705935128828,-951.02,0.00055068,120]
[312503096,1705935128857,-1742.89,0.00055068,120]
[312503097,1705935128888,-500.0,0.00055068,120]
[312503098,1705935128917,-500.0,0.00055068,120]
[312503099,1705935128948,-500.0,0.00055068,120]
[312503100,1705935128979,-762.89,0.00055068,120]
[312503101,1705935129011,-650.96,0.00055068,120]
[312503102,1705935129043,-659.39,0.00055068,120]
[312503103,1705935129073,-500.0,0.00055068,120]
[312503104,1705935129102,-500.0,0.00055068,120]
[312503105,1705935129131,-500.0,0.00055068,120]
[312503106,1705935129159,-500.0,0.00055068,120]
[312503107,1705935129187,-651.75,0.00055068,120]
[312503108,1705935129216,-500.0,0.00055068,120]
[312503109,1705935129244,-500.0,0.00055068,120]
[312503110,1705935129272,-852.44,0.00055068,120]
[312503111,1705935129301,-500.0,0.00055068,120]
[312503112,1705935129329,-500.0,0.00055068,120]
[312503113,1705935129357,-500.0,0.00055068,120]
[312503114,1705935129386,-500.0,0.00055068,120]
[312503115,1705935129414,-500.0,0.00055068,120]
[312503116,1705935129441,-500.0,0.00055068,120]
[312503117,1705935129723,-1607.72,0.00055068,120]
[312503118,1705935129753,-500.0,0.00055068,120]
[312503119,1705935129781,-1788.51,0.00055068,120]
[312503120,1705935129809,-500.0,0.00055068,120]
[312503121,1705935129842,-669.85,0.00055068,120]
[312503122,1705935129871,-744.04,0.00055068,120]
[312503123,1705935129899,-500.0,0.00055068,120]
[312503124,1705935129928,-645.14,0.00055068,120]
[312503125,1705935129958,-608.8,0.00055068,120]
[312503126,1705935129987,-500.0,0.00055068,120]
[312503127,1705935130021,-500.0,0.00055068,120]
[312503128,1705935130049,-702.16,0.00055068,120]
[312503129,1705935130078,-300.0,0.00055068,120]
[312503130,1705935130107,-559.87,0.00055068,120]
[312503131,1705935130135,-500.0,0.00055068,120]
[312503132,1705935130163,-500.0,0.00055068,120]
[312503133,1705935130191,-1326.85,0.00055068,120]
[312503134,1705935130222,-500.0,0.00055068,120]
[312503135,1705935130251,-1404.36,0.00055068,120]
[312503136,1705935130279,-529.59091126,0.00055068,120]
[312503137,1705935130308,-1490.02,0.00055068,120]
[312503138,1705935130338,-500.0,0.00055068,120]
[312503139,1705935130365,-500.0,0.00055068,120]
[312503140,1705935130393,-500.0,0.00055068,120]
[312503141,1705935130421,-500.0,0.00055068,120]
[312503142,1705935130448,-500.0,0.00055068,120]
[312503143,1705935130477,-500.0,0.00055068,120]
[312503144,1705935130504,-500.0,0.00055068,120]
[312503145,1705935130531,-1273.58,0.00055068,120]
[312503146,1705935130559,-500.0,0.00055068,120]
[312503147,1705935130589,-500.0,0.00055068,120]
[312503148,1705935130615,-500.0,0.00055068,120]
[312503149,1705935130641,-1000.0,0.00055068,50]
[312503150,1705935130668,-1577.88,0.00055068,120]
[312503151,1705935130701,-850.44,0.00055068,120]
[312503152,1705935130730,-500.0,0.00055068,120]
[312503153,1705935130757,-665.34,0.00055068,120]
[312503154,1705935130784,-500.0,0.00055068,120]
[312503155,1705935130811,-836.88,0.00055068,120]
[312503156,1705935130839,-500.0,0.00055068,120]
[312503157,1705935130866,-1144.66,0.00055068,120]
[312503158,1705935130894,-649.5,0.00055068,120]
[312503159,1705935130925,-500.0,0.00055068,120]
[312503160,1705935130957,-500.0,0.00055068,120]
[312503161,1705935130986,-1273.46,0.00055068,120]
[312503162,1705935131015,-991.3,0.00055068,120]
[312503163,1705935131044,-500.0,0.00055068,120]
[312503164,1705935131072,-500.0,0.00055068,120]
[312503165,1705935131101,-500.0,0.00055068,120]
[312503166,1705935131130,-1047.97,0.00055068,120]
[312503167,1705935131159,-500.0,0.00055068,120]
[312503168,1705935131189,-500.0,0.00055068,120]
[312503169,1705935131220,-500.0,0.00055068,120]
[312503170,1705935131250,-500.0,0.00055068,120]
[312503171,1705935131279,-500.0,0.00055068,120]
[312503172,1705935131312,-500.0,0.00055068,120]
[312503173,1705935131341,-600.2,0.00055068,120]
[312503174,1705935131375,-500.0,0.00055068,120]
[312503175,1705935131404,-500.0,0.00055068,120]
[312503176,1705935131435,-754.61,0.00055068,120]
[312503177,1705935131464,-852.62,0.00055068,120]
[312503178,1705935131493,-836.94,0.00055068,120]
[312503179,1705935131521,-500.0,0.00055068,120]
[312503180,1705935131549,-1180.08,0.00055068,120]
[312503181,1705935131580,-1099.97,0.00055068,120]
[312503182,1705935131609,-500.0,0.00055068,120]
[312503183,1705935131637,-500.0,0.00055068,120]
[312503184,1705935131664,-500.0,0.00055068,120]
[312503185,1705935131692,-500.0,0.00055068,120]
[312503186,1705935131720,-3067.18,0.00055068,120]
[312503187,1705935131748,-514.64802783,0.00055068,120]
[312503188,1705935131775,-500.0,0.00055068,120]
[312503189,1705935131803,-560.46150885,0.00055068,60]
[312503190,1705935131833,-857.36,0.00055068,120]
[312503191,1705935131862,-1899.47,0.00055068,120]
[312503192,1705935131890,-500.0,0.00055068,120]
[312503193,1705935131921,-597.17,0.00055068,120]
[312503194,1705935131955,-1527.68,0.00055068,120]
[312503195,1705935131986,-1800.8,0.00055068,120]
[312503196,1705935132015,-806.43,0.00055068,120]
[312503197,1705935132045,-500.0,0.00055068,120]
[312503198,1705935132073,-2110.23,0.00055068,120]
[312503199,1705935132100,-500.0,0.00055068,120]
[312503200,1705935132127,-500.0,0.00055068,120]
[312503201,1705935132155,-500.0,0.00055068,120]
[312503202,1705935132184,-1844.2,0.00055068,120]
[312503203,1705935132211,-500.0,0.00055068,120]
[312503204,1705935132239,-552.99,0.00055068,120]
[312503205,1705935132280,-500.0,0.00055068,120]
[312503206,1705935132315,-1034.47,0.00055068,120]
[312503207,1705935132346,-500.0,0.00055068,120]
[312503208,1705935132377,-1707.75,0.00055068,120]
[312503209,1705935132407,-666.0,0.00055068,120]
[312503210,1705935132436,-1081.22,0.00055068,120]
[312503211,1705935132465,-500.0,0.00055068,120]
[312503212,1705935132494,-684.76,0.00055068,120]
[312503213,1705935132532,-1129.13,0.00055068,120]
[312503214,1705935132591,-500.0,0.00055068,120]
[312503215,1705935132623,-1780.29,0.00055068,120]
[312503216,1705935132652,-599.85,0.00055068,120]
[312503217,1705935132680,-500.0,0.00055068,120]
[312503218,1705935132707,-932.99,0.00055068,120]
[312503219,1705935132736,-2637.9,0.00055068,120]
[312503220,1705935132997,-500.0,0.00055068,120]
[312503221,1705935133044,-1394.47,0.00055068,120]
[312503222,1705935133076,-756.66,0.00055068,120]
[312503223,1705935133104,-569.47,0.00055068,120]
[312503224,1705935133132,-500.0,0.00055068,120]
[312503225,1705935133160,-353.10596085,0.00055068,120]
[312503226,1705935133188,-500.0,0.00055068,120]
[312503227,1705935133217,-591.22,0.00055068,120]
[312503228,1705935133250,-1651.7,0.00055068,120]
[312503229,1705935133278,-500.0,0.00055068,120]
[312503230,1705935133307,-1013.83,0.00055068,120]
[312503231,1705935133336,-970.35,0.00055068,120]
[312503232,1705935133364,-1849.77,0.00055068,120]
[312503233,1705935133392,-500.0,0.00055068,120]
[312503234,1705935133420,-500.0,0.00055068,120]
[312503235,1705935133449,-506.16,0.00055068,120]
[312503236,1705935133476,-920.91,0.00055068,120]
[312503237,1705935133505,-752.54,0.00055068,120]
[312503238,1705935133533,-653.54,0.00055068,120]
[312503239,1705935133561,-500.0,0.00055068,120]
[312503240,1705935133591,-1751.16,0.00055068,120]
[312503241,1705935133618,-541.13383328,0.00055068,120]
[312503242,1705935133645,-1880.56,0.00055068,120]
[312503243,1705935133673,-652.01,0.00055068,120]
[312503244,1705935133701,-532.73632479,0.00055068,120]
[312503245,1705935133728,-1782.45,0.00055068,120]
[312503246,1705935133755,-500.0,0.00055068,120]
[312503247,1705935133782,-631.92,0.00055068,120]
[312503248,1705935133808,-650.78,0.00055068,120]
[312503249,1705935133837,-500.0,0.00055068,120]
[312503250,1705935133865,-752.76,0.00055068,120]
[312503251,1705935133894,-2270.34,0.00055068,120]
[312503252,1705935133923,-1786.0,0.00055068,120]
[312503253,1705935133951,-2498.73,0.00055068,120]
[312503254,1705935133979,-500.0,0.00055068,120]
[312503255,1705935134008,-1781.02,0.00055068,120]
[312503256,1705935134037,-1361.82,0.00055068,120]
[312503257,1705935134067,-3797.03,0.00055068,120]
[312503258,1705935134096,-1755.9,0.00055068,120]
[312503259,1705935134125,-1364.57,0.00055068,120]
[312503260,1705935134153,-500.0,0.00055068,120]
[312503261,1705935134181,-500.0,0.00055068,120]
[312503262,1705935134210,-217.32393414,0.00055068,120]
[312503263,1705935134237,-448.23625724,0.00055068,120]
[312503264,1705935134264,-1756.9,0.00055068,120]
[312503265,1705935134291,-790.71,0.00055068,120]
[312503266,1705935134323,-598.0,0.00055068,120]
[312503267,1705935134350,-500.0,0.00055068,120]
[312503268,1705935134377,-2055.24,0.00055068,120]
[312503269,1705935134404,-615.45416757,0.00055068,120]
[312503270,1705935134430,-520.62361918,0.00055068,120]
[312503271,1705935134457,-609.8,0.00055068,120]
[312503272,1705935134485,-2203.35,0.00055068,120]
[312503273,1705935134511,-500.0,0.00055068,120]
[312503274,1705935134538,-614.43017337,0.00055068,120]
[312503275,1705935134565,-543.53,0.00055068,120]
[312503276,1705935134591,-761.51,0.00055068,120]
[312503277,1705935134617,-1909.96,0.00055068,120]
[312503278,1705935134646,-12125.73,0.00055068,120]
[312503279,1705935134673,-1240.73,0.00055068,120]
[312503280,1705935134701,-500.0,0.00055068,120]
[312503281,1705935134730,-500.0,0.00055068,120]
[312503282,1705935134759,-2651.29,0.00055068,120]
[312503283,1705935134785,-502.96863306,0.00055068,120]
[312503284,1705935134812,-1145.3,0.00055068,120]
[312503285,1705935134840,-583.15447744,0.00055068,120]
[312503286,1705935134868,-1183.91,0.00055068,120]
[312503287,1705935134896,-1284.7,0.00055068,120]
[312503288,1705935134923,-500.0,0.00055068,120]
[312503289,1705935134952,-500.0,0.00055068,120]
[312503290,1705935134980,-5137.25,0.00055068,120]
[312503291,1705935135009,-500.0,0.00055068,120]
[312503292,1705935135037,-500.0,0.00055068,120]
[312503293,1705935135066,-1103.44,0.00055068,120]
[312503294,1705935135093,-500.0,0.00055068,120]
[312503295,1705935135120,-500.0,0.00055068,120]
[312503296,1705935135147,-500.0,0.00055068,120]
[312503297,1705935135174,-1260.21,0.00055068,120]
[312503298,1705935135201,-500.0,0.00055068,120]
[312503299,1705935135228,-500.0,0.00055068,120]
[312503300,1705935135256,-2169.34,0.00055068,120]
[312503301,1705935135282,-12713.95,0.00055068,120]
[312503302,1705935135310,-1882.98,0.00055068,120]
[312503303,1705935135339,-500.0,0.00055068,120]
[312503304,1705935135366,-967.39,0.00055068,120]
[312503305,1705935135394,-1657.15,0.00055068,120]
[312503306,1705935135420,-500.0,0.00055068,120]
[312503307,1705935135447,-943.25,0.00055068,120]
[312503308,1705935135476,-500.0,0.00055068,120]
[312503309,1705935135503,-1729.69,0.00055068,120]
[312503310,1705935135530,-500.0,0.00055068,120]
[312503311,1705935135557,-569.65,0.00055068,120]
[312503312,1705935135586,-606.66,0.00055068,120]
[312503313,1705935135614,-2125.62,0.00055068,120]
[312503314,1705935135640,-1565.88,0.00055068,120]
[312503315,1705935135668,-1419.55,0.00055068,120]
[312503316,1705935135694,-1400.47,0.00055068,120]
[312503317,1705935135720,-1689.91,0.00055068,120]
[312503318,1705935135747,-689.11,0.00055068,120]
[312503319,1705935135773,-500.0,0.00055068,120]
[312503320,1705935135799,-500.0,0.00055068,120]
[312503321,1705935135825,-1921.07,0.00055068,120]
[312503322,1705935135851,-305.70728483,0.00055068,120]
[312503323,1705935135877,-500.0,0.00055068,120]
[312503324,1705935136118,-700.71,0.00055068,120]
[312503325,1705935136147,-2015.32,0.00055068,120]
[312503326,1705935136176,-500.0,0.00055068,120]
[312503327,1705935136205,-500.0,0.00055068,120]
[312503328,1705935136232,-500.0,0.00055068,120]
[312503329,1705935136259,-1927.03,0.00055068,120]
[312503330,1705935136290,-1539.91,0.00055068,120]
[312503331,1705935136316,-1314.85,0.00055068,120]
[312503332,1705935136345,-1686.46,0.00055068,120]
[312503333,1705935136374,-500.0,0.00055068,120]
[312503334,1705935136399,-500.0,0.00055068,120]
[312503335,1705935136425,-677.55,0.00055068,120]
[312503336,1705935136452,-1985.74,0.00055068,120]
[312503337,1705935136479,-2691.17,0.00055068,120]
[312503338,1705935136505,-500.0,0.00055068,120]
[312503339,1705935136533,-550.06,0.00055068,120]
[312503340,1705935136560,-712.03,0.00055068,120]
[312503341,1705935136589,-1259.3,0.00055068,120]
[312503342,1705935136615,-4762.26,0.00055068,120]
[312503343,1705935136645,-736.61,0.00055068,120]
[312503344,1705935136671,-500.0,0.00055068,120]
[312503345,1705935136697,-500.0,0.00055068,120]
[312503346,1705935136724,-1880.63,0.00055068,120]
[312503347,1705935136752,-2461.8,0.00055068,120]
[312503348,1705935136780,-1557.26,0.00055068,120]
[312503349,1705935136807,-500.0,0.00055068,120]
[312503350,1705935136835,-793.99,0.00055068,120]
[312503351,1705935136861,-500.0,0.00055068,120]
[312503352,1705935136889,-500.0,0.00055068,120]
[312503353,1705935136917,-1379.69,0.00055068,120]
[312503354,1705935136945,-932.81,0.00055068,120]
[312503355,1705935136974,-500.0,0.00055068,120]
[312503356,1705935137005,-2604.87,0.00055068,120]
[312503357,1705935137033,-500.0,0.00055068,120]
[312503358,1705935137062,-500.0,0.00055068,120]
[312503359,1705935137091,-500.0,0.00055068,120]
[312503360,1705935137119,-3105.23,0.00055068,120]
[312503361,1705935137148,-500.0,0.00055068,120]
[312503362,1705935137177,-500.0,0.00055068,120]
[312503363,1705935137206,-500.0,0.00055068,120]
[312503364,1705935137234,-268.50258665,0.00055068,120]
[312503365,1705935137262,-500.0,0.00055068,120]
[312503366,1705935137291,-357.03462557,0.00055068,120]
[312503367,1705935137324,-1967.28,0.00055068,120]
[312503368,1705935137351,-504.66,0.00055068,120]
[312503369,1705935137380,-2108.57,0.00055068,120]
[312503370,1705935137408,-5534.47,0.00055068,120]
[312503371,1705935137436,-2822.45,0.00055068,120]
[312503372,1705935137464,-1151.76,0.00055068,120]
[312503373,1705935137491,-1147.57,0.00055068,120]
[312503374,1705935137519,-500.0,0.00055068,120]
[312503375,1705935137558,-504.79,0.00055068,120]
[312503376,1705935137589,-500.0,0.00055068,120]
[312503377,1705935137618,-828.94,0.00055068,120]
[312503378,1705935137647,-1921.76,0.00055068,120]
[312503379,1705935137675,-500.0,0.00055068,120]
[312503380,1705935137704,-500.0,0.00055068,120]
[312503381,1705935137734,-517.22,0.00055068,120]
[312503382,1705935137762,-836.23,0.00055068,120]
[312503383,1705935137788,-253.05220386,0.00055068,120]
[312503384,1705935137816,-528.36028184,0.00055068,120]
[312503385,1705935137845,-500.0,0.00055068,120]
[312503386,1705935137874,-859.23,0.00055068,120]
[312503387,1705935137903,-500.0,0.00055068,120]
[312503388,1705935137935,-2987.07,0.00055068,120]
[312503389,1705935137966,-500.0,0.00055068,120]
[312503390,1705935137995,-1485.29,0.00055068,120]
[312503391,1705935138025,-574.24450327,0.00055068,120]
[312503392,1705935138056,-1113.39,0.00055068,120]
[312503393,1705935138088,-699.12,0.00055068,120]
[312503394,1705935138117,-500.0,0.00055068,120]
[312503395,1705935138148,-1325.84,0.00055068,120]
[312503396,1705935138179,-610.32,0.00055068,120]
[312503397,1705935138210,-500.0,0.00055068,120]
[312503398,1705935138241,-500.0,0.00055068,120]
[312503399,1705935138270,-680.84,0.00055068,120]
[312503400,1705935138299,-977.5,0.00055068,120]
[312503401,1705935138327,-1197.96,0.00055068,120]
[312503402,1705935138355,-1447.9,0.00055068,120]
[312503403,1705935138384,-500.0,0.00055068,120]
[312503404,1705935138414,-6620.65,0.00055068,120]
[312503405,1705935138444,-768.63,0.00055068,120]
[312503406,1705935138476,-4857.5,0.00055068,120]
[312503407,1705935138506,-2086.5,0.00055068,120]
[312503408,1705935138537,-500.0,0.00055068,120]
[312503409,1705935138568,-500.0,0.00055068,120]
[312503410,1705935138603,-1199.49,0.00055068,120]
[312503411,1705935138632,-500.0,0.00055068,120]
[312503412,1705935138666,-500.0,0.00055068,120]
[312503413,1705935138697,-2054.67,0.00055068,120]
[312503414,1705935138727,-500.0,0.00055068,120]
[312503415,1705935138757,-554.609101,0.00055068,120]
[312503416,1705935138790,-886.41,0.00055068,120]
[312503417,1705935138823,-500.0,0.00055068,120]
[312503418,1705935138853,-519.19,0.00055068,120]
[312503419,1705935138883,-500.0,0.00055068,120]
[312503420,1705935138915,-500.0,0.00055068,120]
[312503421,1705935138948,-10248.86,0.00055068,120]
[312503422,1705935138980,-500.0,0.00055068,120]
[312503423,1705935139013,-1103.75,0.00055068,120]
[312503424,1705935139157,-500.0,0.00055068,120]
[312503425,1705935139191,-751.87,0.00055068,120]
[312503426,1705935139221,-3237.18,0.00055068,120]
[312503427,1705935139515,-789.59,0.00055068,120]
[312503428,1705935139545,-2009.92,0.00055068,120]
[312503429,1705935139574,-685.82,0.00055068,120]
[312503430,1705935139602,-500.0,0.00055068,120]
[312503431,1705935139628,-964.24,0.00055068,120]
[312503432,1705935139654,-4264.33,0.00055068,120]
[312503433,1705935139682,-500.0,0.00055068,120]
[312503434,1705935139709,-1535.34,0.00055068,120]
[312503435,1705935139736,-809.7,0.00055068,120]
[312503436,1705935139765,-1154.09,0.00055068,120]
[312503437,1705935139793,-1697.89,0.00055068,120]
[312503438,1705935139821,-1595.7,0.00055068,120]
[312503439,1705935139848,-1596.19,0.00055068,120]
[312503440,1705935139876,-1154.51,0.00055068,120]
[312503441,1705935139903,-500.0,0.00055068,120]
[312503442,1705935139931,-500.0,0.00055068,120]
[312503443,1705935139961,-500.0,0.00055068,120]
[312503444,1705935139989,-575.61237124,0.00055068,120]
[312503445,1705935140018,-500.0,0.00055068,120]
[312503446,1705935140050,-1552.88,0.00055068,120]
[312503447,1705935140079,-2914.21,0.00055068,120]
[312503448,1705935140109,-608.04,0.00055068,120]
[312503449,1705935140138,-500.0,0.00055068,120]
[312503450,1705935140166,-700.43,0.00055068,120]
[312503451,1705935140199,-500.0,0.00055068,120]
[312503452,1705935140229,-980.8,0.00055068,120]
[312503453,1705935140258,-696.01,0.00055068,120]
[312503454,1705935140292,-1757.28,0.00055068,120]
[312503455,1705935140322,-1171.38,0.00055068,120]
[312503456,1705935140352,-592.18297996,0.00055068,120]
[312503457,1705935140381,-665.51,0.00055068,120]
[312503458,1705935140411,-1708.66,0.00055068,120]
[312503459,1705935140441,-500.0,0.00055068,120]
[312503460,1705935140470,-545.34131652,0.00055068,120]
[312503461,1705935140499,-559.65,0.00055068,120]
[312503462,1705935140529,-500.0,0.00055068,120]
[312503463,1705935140559,-1273.88,0.00055068,120]
[312503464,1705935140590,-500.0,0.00055068,120]
[312503465,1705935140618,-500.0,0.00055068,120]
[312503466,1705935140646,-536.79,0.00055068,120]
[312503467,1705935140675,-520.77,0.00055068,120]
[312503468,1705935140701,-714.84,0.00055068,120]
[312503469,1705935140729,-1047.69,0.00055068,120]
[312503470,1705935140757,-500.0,0.00055068,120]
[312503471,1705935140786,-1774.41,0.00055068,120]
[312503472,1705935140816,-908.82,0.0005508,120]
[312503473,1705935140847,-908.82,0.00055082,120]
[312503474,1705935140876,-908.82,0.000551,120]
[312503475,1705935140905,-909.04825105,0.0005511,120]
[312503476,1705935140937,-151.45,0.00055137,120]
[312503477,1705935140966,-908.82,0.00055164,120]
[312503478,1705935140995,-908.82,0.00055178,120]
[312503479,1705935141024,-1197.56007119,0.00055216,120]
[312503480,1705935141054,-150.40437152,0.00055251,64]
[312503481,1705935141083,-908.82,0.0005526,120]
[312503482,1705935141112,-908.82,0.00055273,120]
[312503483,1705935141141,-250.0,0.000553,120]
[312503484,1705935141170,-258.8,0.000553,120]
[312503485,1705935141200,-908.82,0.00055308,120]
[312503486,1705935141228,-150.0,0.0005534,60]
[312503487,1705935141257,-908.82,0.00055342,120]
[312503488,1705935141289,-500.0,0.00055342,120]
[312503489,1705935141317,-500.0,0.00055342,120]
[312503490,1705935141348,-500.0,0.00055342,120]
[312503491,1705935141377,-500.0,0.00055342,120]
[312503492,1705935141406,-562.44,0.00055342,120]
[312503493,1705935141435,-537.34081174,0.00055342,120]
[312503494,1705935141466,-500.0,0.00055342,120]
[312503495,1705935141495,-748.98,0.00055342,120]
[312503496,1705935141522,-589.84,0.00055342,120]
[312503497,1705935141550,-545.0015744,0.00055342,120]
[312503498,1705935141579,-500.0,0.00055342,120]
[312503499,1705935141609,-500.0,0.00055342,120]
[312503500,1705935141638,-500.0,0.00055342,120]
[312503501,1705935141665,-500.0,0.00055342,120]
[312503502,1705935141693,-586.98,0.00055342,120]
[312503503,1705935141720,-501.26,0.00055342,120]
[312503504,1705935141747,-500.0,0.00055342,120]
[312503505,1705935141773,-500.0,0.00055342,120]
[312503506,1705935141799,-500.0,0.00055342,120]
[312503507,1705935141827,-1144.19,0.00055342,120]